Cogmind - Beta 10.2 @@@ ROGUE MODE // 2020.11.07 @ 19:12:55 // Halloween2020/ForbiddenLore Player: blelm Result: Self-destructed Performance ------------- Evolutions (3) 1500 Regions Visited (6) 1200 Robots Destroyed (105) 525 Value Destroyed (2886) 2886 Prototype IDs (13) 260 Alien Tech Used (0) 0 Bonus (158) 158 TOTAL SCORE: 6529 Bonus ------- High Alert Combat Kills 92 Follower Combat Kills 66 Cogmind --------- Core Integrity 627/700 Matter 300/300 Energy 24/100 System Corruption 1% Temperature Cool (0) Movement Hovering (38) Location -7/Factory Parts ------- > --- POWER (1) -------- (None) > --- PROPULSION (4) --- Aerolev Unit Aerolev Unit Aerolev Unit Improved Airjet > --- UTILITY (6) ------ Large Storage Unit Large Storage Unit Improved Signal Interpreter Improved Propulsion Shielding Hacking Suite > --- WEAPON (2) ------- (None) > --- INVENTORY (16) --- Micro Nuclear Core Aerolev Unit Aerolev Unit Improved Linear Gravjet Medium Storage Unit Long-range Terrain Scanner Advanced Terrain Scan Processor Microactuators Improved Propulsion Shielding Improved Light Armor Plating Insulated Plating Hacking Suite System Backup Module Flak Gun Flak Gun Proton Missile Launcher Peak State ------------ > --- POWER ------------ Micro Nuclear Core > --- PROPULSION ------- Aerolev Unit Aerolev Unit Aerolev Unit Improved Airjet > --- UTILITY ---------- Medium Storage Unit Large Storage Unit Advanced Sensor Array Hacking Suite System Shield System Backup Module > --- WEAPON ----------- Greatsword > --- INVENTORY -------- Micro Nuclear Core Aerolev Unit Aerolev Unit Improved Linear Gravjet Improved Linear Gravjet Improved Cesium-ion Thruster Long-range Terrain Scanner Improved Propulsion Shielding Improved Light Armor Plating Insulated Plating Flak Gun Flak Gun Advanced EMP Blaster Proton Missile Launcher [Rating: 50] Favorites ----------- Power Ion Engine Engine Ion Engine Power Core Micro Nuclear Core Propulsion Aerolev Unit Treads Light Treads Leg Aluminum Leg Wheel Compact Wheel Hover Unit Aerolev Unit Flight Unit Improved VTOL Module Utility High-capacity Storage Unit Device Improved Heat Sink Storage High-capacity Storage Unit Processor Improved Signal Interpreter Hackware Hacking Suite Protection Light Armor Plating Weapon Enhanced Autogun Energy Gun Particle Gun Energy Cannon Beam Cannon Ballistic Gun Enhanced Autogun Ballistic Cannon Gauss Cannon Launcher Grenade Launcher Slashing Weapon Greatsword Build | -11 -10 -10 -10 -9 -8 -7 ------- Run | Scr Mat Min Exi Min Mat Fac Slots Evolved 6 | . . . . . 4 2 Power . | . . . . . . . Propulsion 2 | . . . . . 1 1 Utility 4 | . . . . . 3 1 Weapon . | . . . . . . . Parts Attached 133 | 4 10 . 3 8 59 49 Power 9 | . 1 . . . 5 3 Engine 6 | . 1 . . . 4 1 Core 3 | . . . . . 1 2 Reactor . | . . . . . . . Propulsion 29 | 2 1 . . 2 15 9 Treads 8 | . . . . 2 6 . Leg 4 | 2 1 . . . 1 . Wheel 1 | . . . . . 1 . Hover 14 | . . . . . 7 7 Flight 2 | . . . . . . 2 Utility 44 | 1 3 . 3 . 22 15 Device 7 | . . . . . 3 4 Storage 19 | 1 3 . 3 . 9 3 Processor 1 | . . . . . . 1 Hackware 3 | . . . . . 1 2 Protection 14 | . . . . . 9 5 Artifact . | . . . . . . . Weapon 51 | 1 5 . . 6 17 22 Energy Gun 7 | 1 3 . . 2 1 . Energy Cannon 4 | . 1 . . . 1 2 Ballistic Gun 16 | . 1 . . . 9 6 Ballistic Cannon 4 | . . . . 1 3 . Launcher 10 | . . . . 3 3 4 Special Weapon . | . . . . . . . Impact Weapon . | . . . . . . . Slashing Weapon 10 | . . . . . . 10 Piercing Weapon . | . . . . . . . Special Melee Weapon . | . . . . . . . Unidentified Prototypes 9 | . . . . . 3 6 Parts Lost 13 | . 2 . . 4 2 5 Power 2 | . . . . . 1 1 Propulsion 3 | . . . . 2 1 . Utility 3 | . . . . . . 3 Weapon 5 | . 2 . . 2 . 1 Highest Loss Streak 2 | . 1 . . 2 1 2 Average Slot Usage (%) 97 | . 99 100 100 99 99 92 Engine 8 | . 14 14 14 14 8 . Core 2 | . . . . . . 6 Treads 6 | . . . . 4 17 . Leg 10 | . 28 28 28 23 . . Wheel 1 | . . . . . 5 . Hover 9 | . . . . . 3 30 Device 3 | . . . . . 8 4 Storage 21 | . 28 28 28 28 19 15 Hackware 4 | . . . . . . 14 Protection 6 | . . . . . 16 6 Energy Gun 5 | . 16 14 14 11 . . Energy Cannon 3 | . 10 14 14 5 . . Ballistic Gun 4 | . . . . . 11 1 Ballistic Cannon 2 | . . . . 6 4 . Slashing Weapon 1 | . . . . . . 6 Naked Turns . | . . . . . . . Heaviest Build 130 | 16 59 59 75 75 130 51 Greatest Support 60 | 20 20 20 20 40 60 46 Greatest Overweight (x) 5 | 3 2 2 3 3 5 1 Average Overweight (x) 1 | . . 2 2 2 3 . Largest Inventory Capacity 34 | 8 18 18 20 20 34 16 Average Capacity 17 | 6 11 18 18 20 20 14 Most Carried 27 | 6 14 15 16 14 27 16 Average Carried 14 | 5 8 14 14 12 17 14 Final Capacity 20 | 8 18 18 20 20 12 16 Final Carried 16 | 4 14 15 14 10 12 16 Class Distribution -------------------- 45% | Hauler-Mutant 27% | Mutant 25% | Hacker-Mutant Dominant Class ---------------- Mutant | -10/Materials Mutant | -10/Mines Mutant | -10/Exiles Hauler-Mutant | -9/Mines Hauler-Mutant | -8/Materials Hacker-Mutant | -7/Factory Resources | -11 -10 -10 -10 -9 -8 -7 ----------- Run | Scr Mat Min Exi Min Mat Fac Matter Collected 2678 | 240 102 75 30 184 1283 764 Remotely . | . . . . . . . Salvage Created 3601 | 78 441 129 . 256 1417 1280 Parts 210 | 3 22 9 . 18 80 78 Haulers Intercepted 8 | . 1 . . . 4 3 Recyclers Shooed 5 | . . . . . 1 4 Parts Field Recycled . | . . . . . . . Retrieved Matter . | . . . . . . . Parts Self-Destructed . | . . . . . . . Prevented . | . . . . . . . Kills | -11 -10 -10 -10 -9 -8 -7 ------- Run | Scr Mat Min Exi Min Mat Fac Combat Hostiles Destroyed 66 | . 10 3 . 11 25 17 Melee 5 | . . . . . . 5 Guns 27 | . 7 1 . 2 16 1 Cannons 11 | . 3 2 . 2 4 . AOE 23 | . . . . 7 5 11 Classes Destroyed 13 | 1 4 1 . 3 3 1 Worker 7 | . . 1 . 1 . 5 Tunneler 4 | . . . . 3 1 . Hauler 8 | . 1 . . . 4 3 Recycler 12 | 1 . 1 . . 4 6 Operator 2 | . . . . . 2 . Watcher 8 | . 2 . . . 4 2 Swarmer 24 | . 3 3 . . 8 10 Grunt 29 | . 7 . . 8 11 3 Brawler 1 | . . . . . 1 . Duelist 1 | . . . . 1 . . Sentry 6 | . . . . . 5 1 Programmer 3 | . . . . . . 3 Assembled 2 | . . . . 2 . . Best Kill Streak 8 | 1 3 3 . 7 5 8 Combat Bots Only 4 | . 3 3 . 4 4 4 Max Kills in Single Turn 4 | 1 1 1 . 3 4 4 Gunslinging . | . . . . . . . Exploded 3 | . . . . 2 3 3 Melee 1 | . . . . . . 1 Uniques/NPCs Destroyed . | . . . . . . . Combat | -11 -10 -10 -10 -9 -8 -7 -------- Run | Scr Mat Min Exi Min Mat Fac Damage Taken 2566 | . 322 105 . 432 867 840 Core 280 | . 26 30 . 46 105 73 Absorbed by Shields . | . . . . . . . Core Remaining (%) 79 | 100 . . . 59 80 . Volleys Fired 197 | 6 33 10 . 26 105 17 Largest 2 | 2 2 2 . 2 2 2 Hottest 125 | 80 125 125 . 125 100 65 Shots Fired 361 | 12 66 20 . 39 205 19 Gun 245 | 12 49 10 . 14 153 7 Cannon 92 | . 17 10 . 14 48 3 Launcher 24 | . . . . 11 4 9 Special . | . . . . . . . Kinetic 198 | . 7 . . 1 183 7 Thermal 110 | 6 37 20 . 27 17 3 Explosive 15 | . . . . 11 4 . Electromagnetic 38 | 6 22 . . . 1 9 Robot Hit Streak 15 | 5 15 5 . 14 10 5 Robot Miss Streak 5 | 1 3 3 . 3 3 5 Penetration Max 1 | . . . . . 1 . Secondary Targets 3 | . 1 . . . 2 . Max Gunslinging Chain 1 | . 1 . . . 1 . Shots Hit Robots 263 | 9 38 11 . 27 128 50 Core Hits 149 | 2 18 6 . 25 59 39 Critical Hits 4 | . . . . . 2 2 Critical Kills . | . . . . . . . Critical Parts Destroyed 4 | . . . . . 2 2 Melee Attacks 133 | . . . . . . 133 Impact . | . . . . . . . Slashing 133 | . . . . . . 133 Piercing . | . . . . . . . Sneak Attacks 11 | . . . . . . 11 Combat Hostiles . | . . . . . . . Follow-up Attacks . | . . . . . . . Damage Inflicted 9560 | 98 572 187 . 1236 3327 4140 Guns 2468 | 98 409 97 . 125 1649 90 Cannons 1189 | . 163 90 . 129 807 . Explosions 2473 | . . . . 972 862 639 Melee 3411 | . . . . . . 3411 Ramming 19 | . . . . 10 9 . Kinetic 2359 | . 15 . . . 2254 90 Thermal 1621 | 31 347 187 . 254 631 171 Explosive 1575 | . . . . 972 406 197 Electromagnetic 575 | 67 210 . . . 27 271 Impact . | . . . . . . . Slashing 3411 | . . . . . . 3411 Piercing . | . . . . . . . Highest Corruption 2 | . . . . 1 . 2 Average Corruption 1 | . . . . 1 . 1 Corruption Purged 1 | . . . . . . 1 Effects 14 | . . . . 6 . 8 Message Errors 4 | . . . . 2 . 2 Energy Discharges 6 | . . . . 2 . 4 Targeting Errors 3 | . . . . 1 . 2 Weapon Failures 1 | . . . . 1 . . Overload Shots . | . . . . . . . Overflow Damage 560 | . . . . 13 51 496 Projectiles 36 | . . . . 12 24 . Explosions 37 | . . . . 1 27 9 Melee 487 | . . . . . . 487 Knockbacks 3 | . . . . . 3 . Impact . | . . . . . . . Kinetic 3 | . . . . . 3 . Secondary . | . . . . . . . Self-Inflicted Damage 120 | . . . . 53 15 52 Shots 6 | . . . . 3 1 2 Rammed 4 | . . . . 1 3 . Targets Rammed 4 | . . . . 1 3 . Kicked . | . . . . . . . Crushed . | . . . . . . . Highest Temperature 479 | 108 269 479 . 415 178 90 Average Temperature 104 | 55 82 197 . 154 59 22 Received Heat Transfer 678 | . 138 . . 162 324 54 Effects 5 | . . 4 . 1 . . Shutdowns 3 | . . 2 . 1 . . Matter Decay 1 | . . 1 . . . . Damage (minor) 1 | . . 1 . . . . Siege Activations . | . . . . . . . Robots Corrupted . | . . . . . . . Combat Hostiles . | . . . . . . . Parts Fried 1 | . 1 . . . . . Impact Corruptions . | . . . . . . . Robots Melted . | . . . . . . . Combat Hostiles . | . . . . . . . Parts Melted 3 | . 1 1 . . 1 . Heat Transferred 2610 | 75 766 407 . 555 657 150 Parts Sabotaged . | . . . . . . . Parts Stolen . | . . . . . . . Parts Stripped . | . . . . . . . Power Chain Reactions 4 | . 1 . . . . 3 Missiles Intercepted . | . . . . . . . Alert | -11 -10 -10 -10 -9 -8 -7 ------- Run | Scr Mat Min Exi Min Mat Fac Peak Influence 754 | 5 217 117 . 170 458 754 Initial 119 | . 3 37 . . . 119 Average 179 | 2 82 50 . 39 136 389 Maximum Alert Level 3 | . 1 . . . 2 3 Low Security (%) 64 | 100 93 100 . 100 73 10 Level 1 21 | . 6 . . . 25 42 Level 2 13 | . . . . . 1 45 Level 3 . | . . . . . . . Level 4 . | . . . . . . . Level 5 . | . . . . . . . High Security . | . . . . . . . Max Security . | . . . . . . . Squads Dispatched 8 | . 1 . . . . 7 Investigation 4 | . 1 . . . . 3 Extermination 3 | . . . . . . 3 Reinforcement 1 | . . . . . . 1 Assault . | . . . . . . . Garrison . | . . . . . . . Intercept . | . . . . . . . Construction Impeded . | . . . . . . . Haulers Reinforced 1 | . . . . . . 1 Stealth | -11 -10 -10 -10 -9 -8 -7 --------- Run | Scr Mat Min Exi Min Mat Fac Distress Signals 7 | . 1 . . 1 4 1 Communications Jammed . | . . . . . . . Distress Signals . | . . . . . . . Times Spotted 114 | . 16 3 . 13 40 42 Peak Tracking Total 7 | . 3 3 . 4 4 7 Tactical Retreats 13 | . 1 . . . 3 9 Traps | -11 -10 -10 -10 -9 -8 -7 ------- Run | Scr Mat Min Exi Min Mat Fac Traps Triggered 2 | . . . . . 1 1 Indirectly . | . . . . . . . Trap Hack Attempts . | . . . . . . . Triggered . | . . . . . . . Disarmed . | . . . . . . . Reprogrammed . | . . . . . . . Reused . | . . . . . . . Traps Extracted . | . . . . . . . Installed . | . . . . . . . Triggered . | . . . . . . . Machines | -11 -10 -10 -10 -9 -8 -7 ---------- Run | Scr Mat Min Exi Min Mat Fac Machines Disabled 40 | . . . . . 7 33 Max in Single Turn 11 | . . . . . 6 11 Garrison Access 1 | . . . . . . 1 Machines Sabotaged . | . . . . . . . Garrisons Compromised . | . . . . . . . Overloaded Fab Kills . | . . . . . . . Fab Network Shutdowns . | . . . . . . . Hacking | -11 -10 -10 -10 -9 -8 -7 --------- Run | Scr Mat Min Exi Min Mat Fac Machines Accessed 37 | . 4 . 1 . 6 26 Terminals 26 | . 4 . . . 4 18 Fabricators 4 | . . . . . . 4 Repair Stations 1 | . . . . . . 1 Recycling Units . | . . . . . . . Scanalyzers 3 | . . . . . 2 1 Garrison Access 2 | . . . . . . 2 Total Hacks 135 | . 11 . 1 . 24 99 Successful 75 | . 5 . 1 . 15 54 Failed 60 | . 6 . . . 9 45 Catastrophic 14 | . 2 . . . 4 8 Database Lockouts . | . . . . . . . Manual 58 | . 9 . . . 8 41 Terminals 100 | . 11 . . . 15 74 Fabricators 13 | . . . . . . 13 Repair Stations 3 | . . . . . . 3 Recycling Units . | . . . . . . . Scanalyzers 15 | . . . . . 9 6 Garrison Access 3 | . . . . . . 3 Terminal Hacks 37 | . 4 . 1 . 5 27 Record 1 | . . . 1 . . . Part Schematic 4 | . . . . . . 4 Robot Analysis 4 | . 2 . . . 1 1 Prototype ID Bank 2 | . . . . . . 2 Branch Access Points 3 | . 1 . . . 1 1 Terminal Index 1 | . . . . . . 1 Fabricator Index 1 | . . . . . . 1 Alert Level 5 | . . . . . . 5 Unreport Threat 7 | . . . . . 3 4 Locate Traps 1 | . . . . . . 1 Security Status 1 | . . . . . . 1 Hauler Manifests 2 | . 1 . . . . 1 Registered Prototypes 1 | . . . . . . 1 Zone Layout 4 | . . . . . . 4 Fabricator Hacks 8 | . . . . . . 8 Load Schematic 4 | . . . . . . 4 Build 4 | . . . . . . 4 Repair Station Hacks 2 | . . . . . . 2 Scan Component 1 | . . . . . . 1 Repair 1 | . . . . . . 1 Recycling Unit Hacks . | . . . . . . . Scanalyzer 14 | . . . . . 8 6 Insert Component 7 | . . . . . 4 3 Analyze 7 | . . . . . 4 3 Garrison Access Hacks 1 | . . . . . . 1 Seal Access 1 | . . . . . . 1 Unauthorized Hacks 13 | . 1 . . . 2 10 Terminals 11 | . 1 . . . 2 8 Track 3 | . . . . . . 3 Assimilate 1 | . . . . . . 1 Botnet 4 | . . . . . 1 3 Operators 3 | . 1 . . . 1 1 Fabricators 2 | . . . . . . 2 Siphon 2 | . . . . . . 2 Repair Stations . | . . . . . . . Recycling Units . | . . . . . . . Scanalyzers . | . . . . . . . Garrison Access . | . . . . . . . Data Cores Recovered 1 | . . . . . 1 . Used . | . . . . . . . Hacking Detections 32 | . 4 . . . 6 22 Full Trace Events 4 | . 1 . . . . 3 Feedback Events 1 | . . . . . . 1 Corruption 1 | . . . . . . 1 Feedback Blocked . | . . . . . . . Robot Schematics Acquired . | . . . . . . . Robots Built . | . . . . . . . Matter . | . . . . . . . Time . | . . . . . . . Total Robot Build Rating . | . . . . . . . Part Schematics Acquired 10 | . . . . . 4 6 Parts Built 4 | . . . . . . 4 Matter 489 | . . . . . . 489 Time 167 | . . . . . . 167 Total Part Build Rating 20 | . . . . . . 20 Parts Repaired 1 | . . . . . . 1 Time 44 | . . . . . . 44 Parts Recycled . | . . . . . . . Recycled Matter . | . . . . . . . Retrieved Matter . | . . . . . . . Retrieved Components . | . . . . . . . Parts Scanalyzed 6 | . . . . . 4 2 Part Schematics Acquired 6 | . . . . . 4 2 Parts Damaged 1 | . . . . . . 1 Bothacking | -11 -10 -10 -10 -9 -8 -7 ------------ Run | Scr Mat Min Exi Min Mat Fac Used RIF Installer . | . . . . . . . Robots Hacked . | . . . . . . . Non-combat . | . . . . . . . Combat . | . . . . . . . Robot Hacks Applied . | . . . . . . . Relay Couplers Released . | . . . . . . . Robots Rewired . | . . . . . . . Allies Hacked . | . . . . . . . Hacks Repelled . | . . . . . . . Allies | -11 -10 -10 -10 -9 -8 -7 -------- Run | Scr Mat Min Exi Min Mat Fac Total Allies 7 | . . . . 3 . 4 Largest Group 3 | . . . . 3 3 3 Highest-Rated Group 93 | . . . . 40 40 93 Highest-Rated Ally 31 | . . . . 16 16 31 Total Orders . | . . . . . . . Ally Attacks 50 | . . . . 20 26 4 Total Damage 666 | . . . . 163 248 255 Kills 5 | . . . . 2 1 2 Allies Corrupted . | . . . . . . . Allies Melted . | . . . . . . . Intel | -11 -10 -10 -10 -9 -8 -7 ------- Run | Scr Mat Min Exi Min Mat Fac Robot Analysis Total 4 | . 2 . . . 1 1 Derelict Logs Recovered 2 | . . 1 . 1 . . Drone Launches . | . . . . . . . Drone Recoveries . | . . . . . . . Exploration | -11 -10 -10 -10 -9 -8 -7 ------------- Run | Scr Mat Min Exi Min Mat Fac Turns Passed 7390 | 53 728 563 454 1261 2314 2017 Spaces Moved 5744 | 20 405 296 238 521 1320 2944 Core 1 | 1 . . . . . . Treads 410 | . . . . 113 297 . Legs 1366 | 19 405 296 238 408 . . Wheels 697 | . . . . . 697 . Hover 3270 | . . . . . 326 2944 Flight . | . . . . . . . Fastest Speed 38 | 120 120 180 180 180 42 38 Average Speed 96 | 137 141 180 187 203 135 38 Slowest Speed 260 | 200 180 180 210 210 260 98 Overloaded Moves . | . . . . . . . Propulsion Burnouts . | . . . . . . . Robots Hopped . | . . . . . . . Cave-ins Triggered . | . . . . . . . Exploration Rate (%) 59 | 3 59 58 59 96 73 68 Regions Visited 6 Branch Regions 3 Pre-discovered Areas 1 | . . . 1 . . . Known Exits Taken 2 | . 1 . . . 1 . Unknown Exits Taken 4 | 1 . 1 1 1 . . Scrap Searched 2 | . . 1 . 1 . . Spaces Dug 86 | . . . . . . 86 Terrain Destroyed 384 | . 4 . . 86 95 199 Melee 81 | . . . . . . 81 Projectile 13 | . . . . . 12 1 AOE 290 | . 4 . . 86 83 117 Terrain Rammed . | . . . . . . . Walls Destroyed . | . . . . . . . Machines Disabled . | . . . . . . . Actions | -11 -10 -10 -10 -9 -8 -7 --------- Run | Scr Mat Min Exi Min Mat Fac Total 7032 | 33 494 307 248 679 1707 3564 Wait 595 | . 26 1 . 124 106 338 Move 5738 | 19 404 295 237 520 1319 2944 Hop . | . . . . . . . Pick Up 97 | . 14 1 3 . 45 34 Fast Attach 36 | 3 . . . . 18 15 Attach 33 | . 2 . . 4 13 14 Detach 15 | . . . . . 9 6 Swap 64 | 1 8 . 3 4 28 20 Drop 120 | 4 7 . 5 . 61 43 Fire 197 | 6 33 10 . 26 105 17 Melee 133 | . . . . . . 133 Ram . | . . . . . . . Kick 1 | . . . . 1 . . Crush 3 | . . . . . 3 . Escape Stasis . | . . . . . . . Rewire . | . . . . . . . Trap . | . . . . . . . Miscellaneous . | . . . . . . . Route ------- -11/Scrapyard -10/Materials (discovered 3 exits: [*Mat x2] / *Min) -10/Mines (discovered 2 exits: [*Mat] / *Exi) -10/Exiles -9/Mines (discovered 2 exits: *Mat x2) -8/Materials (discovered 3 exits: *Fac x3) -7/Factory (discovered 6 exits: [*Fac x3] / *Sto / *Low x2) History --------- Turn | Location | Event 3 | -11/Scrapyard | Discovered new exit (range 3) 54 | -11/Scrapyard | Entered Materials 236 | -10/Materials | Discovered new exit (range 11) 315 | -10/Materials | Build established: Mutant 511 | -10/Materials | Discovered new exit (range 13) 689 | -10/Materials | Discovered new exit (range 6) 705 | -10/Materials | Identified exit to Mines 782 | -10/Materials | Entered Mines 809 | -10/Mines | Met a Derelict bent on vengeance 891 | -10/Mines | Learned Materials emergency access door positions 935 | -10/Mines | Discovered new exit (range 6) 1336 | -10/Mines | Deemed a non-threat by the Exiles lab entrance 1338 | -10/Mines | Discovered new exit (range 5) 1345 | -10/Mines | Entered Exiles 1390 | -10/Exiles | Met 8R-AWN 1419 | -10/Exiles | Met EX-HEX 1493 | -10/Exiles | Met EX-DEC 1515 | -10/Exiles | Learned location of Zion (-6) 1775 | -10/Exiles | Discovered new exit (range 14) 1799 | -10/Exiles | Entered Mines 1833 | -9/Mines | Learned location of 2 exits from Materials 1974 | -9/Mines | Build established: Hauler-Mutant 2185 | -9/Mines | Excavation squad dispatched 2185 | -9/Mines | A large section of the Mines collapsed 2435 | -9/Mines | Excavation squad dispatched 2452 | -9/Mines | Discovered new exit (range 5) 2641 | -9/Mines | Discovered new exit (range 7) 2662 | -9/Mines | Assisted by bots powering up and referring to "LRC-V3" 3060 | -9/Mines | Entered Materials 3060 | -8/Materials | Accompanied by 3 allies 3060 | -8/Materials | Evolved 4 slots: Propulsion x1, Utility x3 3061 | -8/Materials | Identified exit to Factory 4322 | -8/Materials | Discovered exit to Factory (range 13) 5374 | -8/Materials | Entered Factory 5374 | -7/Factory | Evolved 2 slots: Propulsion x1, Utility x1 5461 | -7/Factory | Discovered new exit (range 12) 5675 | -7/Factory | Build established: Hacker-Mutant 5781 | -7/Factory | Discovered new exit (range 4) 5957 | -7/Factory | Identified exit to Storage 5957 | -7/Factory | Identified exit to Lower Caves 6047 | -7/Factory | Discovered new exit (range 5) 6237 | -7/Factory | Fabricated Imp. Linear Gravjet (x2) 6277 | -7/Factory | Fabricated Adv. Sensor Array (x1) 6456 | -7/Factory | Fabricated Hacking Suite (x1) 6830 | -7/Factory | Discovered new exit (range 15) 7127 | -7/Factory | Repaired Broken Imp. Airjet 7365 | -7/Factory | Allied Derelicts emerged from ambush trap array 7391 | -7/Factory | Self-destructed Last Messages --------------- 07361_ U-05 Engineer lays Concrete. 07362_ Acquired Imp. Propulsion Shielding. 07362_ U-05 Engineer lays Concrete. 07365_ Triggered Ambush Trap. 07365_ KW-3IF(g) emerges from a hatch in the floor. 07365_ GW-5PB(g) emerges from a hatch in the floor. 07365_ VR-K6D(g) emerges from a hatch in the floor. 07367_ KW-3IF(g): "We were hacked into the system waiting for the right moment to spring our attack, but seeing as you've already triggered the mechanism and given away our position, let's roll with it." 07378_ W-25 Informer destroyed. 07378_ Acquired 10 matter. 07383_ Fusion Modulator explodes. 07383_ KW-3IF(g) destroyed. 07383_ Fusion Modulator explodes. 07383_ Mic. Nuclear Core destroyed. 07383_ Greatsword destroyed. 07383_ Fusion Modulator explodes. 07383_ Matter Pump disabled. 07383_ Fusion Modulator explodes. Map ----- +----------------------------------------------------+ | # "F" #???# # | | # = """ #???## # | | [! # #????# # | | [ """ """ # ! #????# ] #### | | """ """ ###+#######????# ## | | """ """ ^ ##??###?# # | | ^ ##### ####+############ | | """ """ """ ^ #??????????# | | """ """ """ ^^ ########## #??????????#* | | """ """ """ ^ #????????# #??????????#! | | ###+#########???# #???########% | | # #???# +! | | ########## #???# #???########! | | #?##?????# #???# #??????????# | | #????????# #???# #??????????# | | #????????# #???# #????####### | | #????????# ##### ###### + | | #????????# ]## ##### | | #####????############## #???# | | ########?# ## #???# | | ;;### #???# | | #???# | | r #???### | | #####+####??? | | ; #?# #??? | | @ ########?# #??? | | ########????????# """ #??? | | ## #????????# """ #??# | | ## "" #????????# """ #??# | | ##! T" #????????# #??# | | ## "" ##??????#########?## | | ## ################### | | = ## """ # """""" # = ! # | | ! = ## """ # """""" # # | | * # """ # """""" # """ # | | + # """""" # """ # | | # # # """ " + | | # # ! # % T # | | ################# # # %! " # | | ###???????????????###### = # k # | | #########??????????????## ###/#####+# | | ??????????############+### ### | | ] ??????? s | | [ ??????? s ss < | | [ ??????? u | | ???????? #######+#########+## | | * """ ###????????????# ! # ##### | | """ #??????????????# # #???? | | ! """ #??????????????# # #???? | | #??????????????# # #???? | +----------------------------------------------------+ Best States ------------- Heat Dissipation 53 Energy Generation 16 Energy Capacity 290 Matter Stores 300 Matter Capacity 300 Sight Range 16 Robot Scan Range 16 Terrain Scan Density 10 Armor Coverage 375 Resistance: EM 15 Propulsion Shielding 66 Evasion (%) 57 Recoil Reduction 3 Offensive Hacking 10 Defensive Hacking 10 Item Schematics ----------------- Hacking Suite | -8/Materials | Scanalyzed Hcp. Storage Unit | -8/Materials | Scanalyzed Sml. Storage Unit | -8/Materials | Scanalyzed Imp. Propulsion Shielding | -8/Materials | Scanalyzed Adv. Sensor Array | -7/Factory | Hacked Enh. Optical Array | -7/Factory | Hacked Adv. ECM Suite | -7/Factory | Hacked Mic. Fission Core | -7/Factory | Hacked Imp. Airjet | -7/Factory | Scanalyzed Med. Storage Unit | -7/Factory | Scanalyzed Robot Schematics ------------------ None Fabricated ------------ Imp. Linear Gravjet | x2 | -7/Factory | Preloaded Adv. Sensor Array | x1 | -7/Factory Hacking Suite | x1 | -7/Factory Alien Tech Used ----------------- None Achievements -------------- It Was An Accident, I Swear Challenges ------------ None Game ------ Seed StructuralVortexMallet Manual? 0 Play Time 01:47:00 Cumulative 74.5 hours Start 2020.11.07 @ 14:19:49 End 2020.11.07 @ 19:12:55 Sessions 1 Manual Loads 0 Difficulty Rogue Special Mode Halloween2020/ForbiddenLore Game No. 53 Rogue 53 Adventurer 0 Explorer 0 Win Type - Total 1 Types 1/0/0/0/0/0/0/0/0 Lore% 32 Gallery% 42 Achievement% 36 Wizard Run 0 Options --------- ASCII 1 Keyboard 1 Movement Vi Keybinds 0 Fullscreen 1 Font 16/Terminus Map View 75x55 Tactical HUD 1 Map Filters NONE Filters NONE Steam 1 RUN: 16804025-9140-46ac-ab7b-55ae9dcedde9